Cogmind - Beta 15 @@@ ROGUE MODE // 2025.07.29 @ 17:27:10 Player: VR-DUX Result: Destroyed by G-47 Trooper with Particle Gun Performance ------------- Evolutions (2) 1000 Regions Visited (5) 1000 Robots Destroyed (115) 575 Value Destroyed (2280) 2280 Prototype IDs (4) 80 Alien Tech Used (0) 0 Bonus (120) 120 TOTAL SCORE: 5055 Bonus ------- Follower Combat Kills 120 Cogmind --------- Core Integrity 0/550 Matter 220/300 Energy 100/100 System Corruption 0% Temperature Cool (9) Movement Core (700) Ox13 Location -8/Materials Parts ------- > --- POWER (1) -------- (None) > --- PROPULSION (4) --- (None) > --- UTILITY (4) ------ High-capacity Storage Unit Signal Interpreter Hacking Suite > --- WEAPON (2) ------- Light Assault Rifle > --- INVENTORY (20) --- Improved Flight Unit Improved Flight Unit Improved Flight Unit Improved Flight Unit Improved Flight Unit Improved Flight Unit Improved Flight Unit Scrap Suit Medium Storage Unit Large Storage Unit Structural Scanner Hacking Suite Hacking Suite System Shield Mini Grenade Launcher Mace Peak State ------------ > --- POWER ------------ Ion Engine > --- PROPULSION ------- Improved Treads Improved Treads Advanced Treads Compact Wheel > --- UTILITY ---------- High-capacity Storage Unit Improved Sensor Array Signal Interpreter Hacking Suite > --- WEAPON ----------- Heavy Assault Rifle Light Cannon > --- INVENTORY -------- Light Nuclear Core Light Treads Improved Flight Unit Improved Flight Unit Improved Flight Unit Improved Flight Unit Improved Flight Unit Improved Flight Unit Improved Flight Unit Scrap Suit Medium Storage Unit Large Storage Unit Structural Scanner Hacking Suite Hacking Suite System Shield Light Cannon Mini Grenade Launcher Mace [Rating: 25] Favorites ----------- Power Ion Engine Engine Ion Engine Power Core Light Nuclear Core Propulsion Improved Treads Treads Improved Treads Leg Aluminum Leg Wheel Compact Wheel Flight Unit Improved Flight Unit Utility High-capacity Storage Unit Device Structural Scanner Storage High-capacity Storage Unit Processor Signal Interpreter Hackware Hacking Suite Protection Light Armor Plating Weapon Light Cannon Energy Gun Small Laser Ballistic Gun Assault Rifle Ballistic Cannon Light Cannon Launcher Mini Grenade Launcher Special Weapon Mining Laser Impact Weapon Mace Build | -11 -10 -10 -9 -9 -8 ------- Run | Yrd Mat Min Mat Min Mat Slots Evolved 4 | . . . 2 . 2 Power . | . . . . . . Propulsion 2 | . . . 1 . 1 Utility 2 | . . . 1 . 1 Weapon . | . . . . . . Parts Attached 60 | 4 17 3 22 6 8 Power 5 | . 1 1 1 1 1 Engine 4 | . 1 1 1 1 . Core 1 | . . . . . 1 Reactor . | . . . . . . Propulsion 20 | 2 7 . 7 2 2 Treads 14 | 1 4 . 6 1 2 Leg . | . . . . . . Wheel 5 | 1 3 . . 1 . Hover . | . . . . . . Flight 1 | . . . 1 . . Utility 13 | 1 4 1 4 2 1 Device 3 | 1 . . 1 . 1 Storage 2 | . 2 . . . . Processor 1 | . . . . 1 . Hackware 2 | . . . 1 1 . Protection 5 | . 2 1 2 . . Artifact . | . . . . . . Weapon 22 | 1 5 1 10 1 4 Energy Gun 1 | . . . 1 . . Energy Cannon . | . . . . . . Ballistic Gun 12 | 1 2 1 5 . 3 Ballistic Cannon 5 | . 1 . 3 . 1 Launcher 1 | . . . . 1 . Special Weapon 1 | . 1 . . . . Impact Weapon 2 | . 1 . 1 . . Slashing Weapon . | . . . . . . Piercing Weapon . | . . . . . . Special Melee Weapon . | . . . . . . Unidentified Prototypes 1 | . . . 1 . . Parts Lost 16 | . 2 1 1 . 12 Power 2 | . . . . . 2 Propulsion 7 | . 1 1 . . 5 Utility 1 | . . . . . 1 Weapon 6 | . 1 . 1 . 4 Highest Loss Streak 8 | . 1 1 1 . 8 To Critical Strikes . | . . . . . . Average Backups 17 | 6 14 19 19 19 16 Power . | 1 1 1 1 1 . Propulsion 5 | 3 4 3 4 7 7 Utility 7 | . 5 7 9 8 7 Weapon 3 | 1 3 7 4 3 2 Tool/Special . | . . . . . . Unused Backups 28 | . 5 3 9 . 11 Power 1 | . . 1 . . . Propulsion 8 | . . . 2 . 6 Utility 12 | . 2 1 4 . 5 Weapon 6 | . 3 1 2 . . Tool/Special 1 | . . . 1 . . Average Slot Usage (%) 91 | . 99 99 99 100 64 Engine 9 | . 14 14 10 11 1 Core 1 | . . . . . 5 Treads 23 | . 21 24 32 23 10 Wheel 3 | . 6 2 . 9 1 Device 5 | . 3 . 8 10 1 Storage 11 | . 14 14 11 11 9 Processor 2 | . . . . . 9 Hackware 3 | . . . 2 3 9 Protection 8 | . 10 14 10 7 . Ballistic Gun 13 | . 24 14 9 11 8 Ballistic Cannon 6 | . 3 14 9 10 3 Impact Weapon 1 | . . . 2 . 4 Peak Build Rating 25 | 9 12 13 20 20 25 Average Rating 14 | 6 9 12 16 18 16 On Entrance 12 | 6 9 10 13 19 19 Naked Turns . | . . . . . . Heaviest Build 60 | 15 51 56 60 58 52 Greatest Support 69 | 20 46 46 69 69 22 Greatest Overweight (x) 16 | . 3 2 1 3 16 Average Overweight (x) 1 | . 1 1 . 2 10 Largest Inventory Capacity 20 | 8 20 20 20 20 20 Average Capacity 18 | 8 16 20 20 20 20 Most Carried 20 | 7 20 20 20 20 20 Average Carried 17 | 6 14 19 19 19 17 Final Capacity 20 | 8 20 20 20 20 20 Final Carried 20 | 5 19 20 20 20 17 Class Distribution -------------------- 82% | Mutant 17% | Scavenger-Mutant Dominant Class ---------------- Mutant | -10/Materials Mutant | -10/Mines Scavenger-Mutant | -9/Materials Mutant | -9/Mines Mutant | -8/Materials Resources | -11 -10 -10 -9 -9 -8 ----------- Run | Yrd Mat Min Mat Min Mat Matter Collected 2980 | 311 888 194 1019 135 433 Remotely . | . . . . . . Salvage Created 3232 | 168 947 149 1261 83 624 Parts 217 | 14 66 14 86 10 27 Haulers Intercepted 7 | . 2 . 5 . . Recyclers Shooed 8 | . 4 . 3 . 1 Parts Field Recycled . | . . . . . . Retrieved Matter . | . . . . . . Parts Self-Destructed . | . . . . . . Prevented . | . . . . . . Kills | -11 -10 -10 -9 -9 -8 ------- Run | Yrd Mat Min Mat Min Mat Combat Hostiles Destroyed 53 | . 14 3 18 7 11 Melee 1 | . . . . . 1 Guns 23 | . 12 1 5 1 4 Cannons 19 | . . 2 13 2 2 AOE 10 | . 2 . . 4 4 Classes Destroyed 11 | 3 6 1 . . 1 Worker 15 | 2 5 . 5 1 2 Builder 11 | . 4 . 6 . 1 Tunneler 8 | 3 2 1 2 . . Hauler 7 | . 2 . 5 . . Recycler 5 | 1 2 . . . 2 Operator 5 | . 2 . 3 . . Watcher 11 | . 3 . 4 . 4 Swarmer 14 | . 5 . . 7 2 Grunt 27 | . 9 1 12 . 5 Sentry 10 | . . 2 6 . 2 Hunter 2 | . . . . . 2 Best Kill Streak 8 | 3 7 2 4 4 8 Combat Bots Only 5 | . 4 2 3 4 5 Max Kills in Single Turn 5 | 1 5 1 1 4 3 Gunslinging . | . . . . . . Exploded 4 | . 2 . . 4 2 Melee 1 | . . . . . 1 Uniques/NPCs Destroyed . | . . . . . . Combat | -11 -10 -10 -9 -9 -8 -------- Run | Yrd Mat Min Mat Min Mat Hostile Shots Fired 407 | . 67 22 103 14 201 Missed 97 | . 17 4 21 8 47 Hits 310 | . 50 18 82 6 154 Projectile 310 | . 50 18 82 6 154 Critical Strikes 8 | . 1 . 3 . 4 Damage Taken 4082 | . 720 269 1052 59 1982 Core 758 | . 72 46 70 10 560 Absorbed by Shields . | . . . . . . Regen/Repaired (Parts) 118 | . 75 . 43 . . Core Remaining (%) 77 | 100 . 52 . 80 . Volleys Fired 337 | 24 103 16 107 8 79 Largest 2 | 2 2 2 2 2 2 Hottest 120 | 60 120 53 68 53 53 Shots Fired 622 | 47 197 32 203 14 129 Gun 431 | 47 180 16 101 6 81 Cannon 174 | . 9 16 102 6 41 Launcher 9 | . . . . 2 7 Special 8 | . 8 . . . . Kinetic 584 | 27 189 32 202 12 122 Thermal 28 | 20 8 . . . . Explosive 9 | . . . . 2 7 Electromagnetic 1 | . . . 1 . . Robot Hit Streak 13 | 4 7 10 13 2 9 Robot Miss Streak 6 | 3 6 4 6 1 5 Penetration Max . | . . . . . . Secondary Targets 3 | . 3 . . . . Max Gunslinging Chain 1 | . 1 . . . . Shots Hit Robots 357 | 22 104 19 122 5 85 Core Hits 161 | 7 50 6 50 7 41 Critical Kills 1 | . 1 . . . . Critical Parts Destroyed 1 | . . . . . 1 Critical Strikes 4 | . 1 . 1 . 2 Destroy 2 | . 1 . . . 1 Blast 2 | . . . 1 . 1 Melee Attacks 18 | . 1 . 10 . 7 Impact 18 | . 1 . 10 . 7 Slashing . | . . . . . . Piercing . | . . . . . . Sneak Attacks 6 | . . . 3 . 3 Combat Hostiles . | . . . . . . Follow-up Attacks . | . . . . . . Damage Inflicted 7088 | 288 1728 312 2240 322 2198 Guns 3059 | 288 1128 152 831 34 626 Cannons 1979 | . 38 160 1265 53 463 Explosions 1580 | . 562 . . 235 783 Melee 470 | . . . 144 . 326 Ramming . | . . . . . . Kinetic 4938 | 188 1166 312 2096 87 1089 Thermal 100 | 100 . . . . . Explosive 1580 | . 562 . . 235 783 Electromagnetic . | . . . . . . Impact 470 | . . . 144 . 326 Slashing . | . . . . . . Piercing . | . . . . . . Highest Corruption . | . . . . . . Average Corruption . | . . . . . . Corruption Purged . | . . . . . . Corruption Blocked . | . . . . . . Overload Shots . | . . . . . . Overflow Damage 190 | . . . 69 12 109 Projectiles 28 | . . . 15 . 13 Explosions 12 | . . . . 12 . Melee 150 | . . . 54 . 96 Knockbacks 22 | . 2 2 9 1 8 Impact 2 | . . . 1 . 1 Kinetic 20 | . 2 2 8 1 7 Secondary . | . . . . . . Self-Inflicted Damage 375 | . 198 . . 8 169 Shots 10 | . 2 . . 1 7 Rammed . | . . . . . . Targets Rammed . | . . . . . . Kicked . | . . . . . . Crushed . | . . . . . . Highest Temperature 63 | . 60 51 63 . 50 Average Temperature 17 | . 12 14 21 . 19 Received Heat Transfer 1386 | . 228 108 465 . 585 Siege Activations . | . . . . . . Martial Activations . | . . . . . . Shielding Activations . | . . . . . . Robots Disrupted . | . . . . . . Combat Hostiles . | . . . . . . Robots Corrupted 3 | . . . 1 . 2 Combat Hostiles . | . . . . . . Parts Fried 4 | . . . 2 . 2 Impact Corruptions 7 | . . . 3 . 4 Robots Melted . | . . . . . . Combat Hostiles . | . . . . . . Parts Melted . | . . . . . . Heat Transferred 225 | 225 . . . . . Parts Sabotaged . | . . . . . . Parts Stolen . | . . . . . . Parts Stripped . | . . . . . . Power Chain Reactions . | . . . . . . Alert | -11 -10 -10 -9 -9 -8 ------- Run | Yrd Mat Min Mat Min Mat Maximum Alert Level 1 | . 1 . 1 1 . Low Security (%) 80 | 100 92 100 54 59 100 Level 1 19 | . 7 . 45 40 . Level 2 . | . . . . . . Level 3 . | . . . . . . Level 4 . | . . . . . . Level 5 . | . . . . . . High Security . | . . . . . . Max Security . | . . . . . . Peak Influence 354 | 10 241 40 354 263 152 Initial 126 | . 6 7 . 126 24 Average 96 | 1 86 5 169 167 27 Influence Increases 2229 | 30 591 90 862 182 474 Destroy 0b10 Robot/C 1180 | . 280 60 480 140 220 Destroy 0b10 Robot/NC 310 | 30 100 5 125 5 45 Destroy Leader 336 | . 70 10 168 20 68 Allied During Kill 33 | . . . 24 . 9 Successful Hack 38 | . 18 . 11 . 9 Disable Machine 105 | . 60 . 15 . 30 Destroy Structure 92 | . 33 . 9 17 33 Lose Combat Pursuer 135 | . 30 15 30 . 60 Influence Decreases 2211 | 20 581 110 537 445 518 Entered New Map 254 | . 4 13 . 199 38 Time Decay 1782 | 20 557 97 510 246 352 Lost Part 95 | . 20 . 10 . 65 Lost Ally 57 | . . . 17 . 40 Purge Threat 23 | . . . . . 23 Squads Dispatched 9 | . 2 . 4 . 3 Investigation 2 | . 1 . 1 . . Extermination . | . . . . . . Reinforcement 7 | . 1 . 3 . 3 Assault . | . . . . . . Garrison . | . . . . . . Intercept . | . . . . . . Searches Triggered . | . . . . . . Construction Impeded 1 | . . . . . 1 Haulers Reinforced . | . . . . . . Active Scanning Responses . | . . . . . . Cargo Convoy Interrupts . | . . . . . . Stealth | -11 -10 -10 -9 -9 -8 --------- Run | Yrd Mat Min Mat Min Mat Distress Signals 10 | . 4 . 2 . 4 Communications Jammed . | . . . . . . Distress Signals . | . . . . . . Times Spotted 102 | . 25 4 35 7 31 Peak Tracking Total 7 | . 4 2 3 4 7 Tactical Retreats 6 | . 1 1 1 . 3 Traps | -11 -10 -10 -9 -9 -8 ------- Run | Yrd Mat Min Mat Min Mat Traps Triggered 3 | . 3 . . . . Indirectly . | . . . . . . Trap Hack Attempts . | . . . . . . Triggered . | . . . . . . Disarmed 1 | . . . 1 . . Reprogrammed . | . . . . . . Reused . | . . . . . . Traps Extracted . | . . . . . . Installed . | . . . . . . Triggered . | . . . . . . Machines | -11 -10 -10 -9 -9 -8 ---------- Run | Yrd Mat Min Mat Min Mat Machines Disabled 7 | . 4 . 1 . 2 Max in Single Turn 3 | . 3 . 1 . 1 Garrison Access 1 | . . . . . 1 Machines Repaired . | . . . . . . Machines Dismantled . | . . . . . . Machines Sabotaged . | . . . . . . Overloaded Fab Kills . | . . . . . . Hacking | -11 -10 -10 -9 -9 -8 --------- Run | Yrd Mat Min Mat Min Mat Machines Accessed 17 | . 9 . 5 . 3 Terminals 11 | . 7 . 3 . 1 Fabricators . | . . . . . . Repair Stations 2 | . 1 . 1 . . Recycling Units 3 | . 1 . 1 . 1 Scanalyzers . | . . . . . . Garrison Access 1 | . . . . . 1 Total Hacks 65 | . 35 . 16 . 14 Successful 33 | . 16 . 9 . 8 Failed 32 | . 19 . 7 . 6 Catastrophic 4 | . 3 . 1 . . Database Lockouts . | . . . . . . Manual 26 | . 17 . 5 . 4 Terminals 48 | . 29 . 11 . 8 Fabricators . | . . . . . . Repair Stations 5 | . 2 . 3 . . Recycling Units 9 | . 4 . 2 . 3 Scanalyzers . | . . . . . . Garrison Access 3 | . . . . . 3 Terminal Hacks 19 | . 10 . 5 . 4 Robot Analysis 5 | . 4 . 1 . . Prototype ID Bank 2 | . . . 1 . 1 Branch Access Points 2 | . . . 1 . 1 Unreport Threat 1 | . . . . . 1 Locate Traps 4 | . 3 . 1 . . Disarm Traps 1 | . . . 1 . . Recall Investigation 1 | . 1 . . . . Hauler Manifests 3 | . 2 . . . 1 Fabricator Hacks . | . . . . . . Repair Station Hacks 4 | . 2 . 2 . . Scan Component 2 | . 1 . 1 . . Repair 2 | . 1 . 1 . . Recycling Unit Hacks 5 | . 3 . 1 . 1 Retrieve Matter 2 | . 2 . . . . Retrieve Components 3 | . 1 . 1 . 1 Scanalyzer . | . . . . . . Garrison Access Hacks 1 | . . . . . 1 Seal Access 1 | . . . . . 1 Unauthorized Hacks 4 | . 1 . 1 . 2 Terminals 3 | . 1 . . . 2 Assimilate 1 | . . . . . 1 Botnet 2 | . 1 . . . 1 Fabricators . | . . . . . . Repair Stations . | . . . . . . Recycling Units 1 | . . . 1 . . Reject 1 | . . . 1 . . Scanalyzers . | . . . . . . Garrison Access . | . . . . . . Data Cores Recovered . | . . . . . . Used . | . . . . . . Hacking Detections 12 | . 7 . 4 . 1 Full Trace Events 1 | . . . 1 . . Feedback Events . | . . . . . . Feedback Blocked . | . . . . . . Robot Schematics Acquired . | . . . . . . Robots Built . | . . . . . . Authchips . | . . . . . . Time . | . . . . . . Total Robot Build Rating . | . . . . . . Part Schematics Acquired . | . . . . . . Parts Built . | . . . . . . Authchips . | . . . . . . Time . | . . . . . . Total Part Build Rating . | . . . . . . Parts Repaired 2 | . 1 . 1 . . Time 58 | . 26 . 32 . . Parts Recycled . | . . . . . . Recycled Matter . | . . . . . . Retrieved Matter . | . . . . . . Retrieved Components 14 | . 3 . 10 . 1 Parts Scanalyzed . | . . . . . . Part Schematics Acquired . | . . . . . . Parts Damaged . | . . . . . . Bothacking | -11 -10 -10 -9 -9 -8 ------------ Run | Yrd Mat Min Mat Min Mat Used RIF Installer . | . . . . . . Robots Hacked . | . . . . . . Non-combat . | . . . . . . Combat . | . . . . . . Robot Hacks Applied . | . . . . . . Relay Couplers Released . | . . . . . . Fabnet Peak Effective % . | . . . . . . Robots Rewired . | . . . . . . Allies Hacked . | . . . . . . Hacks Repelled . | . . . . . . Allies | -11 -10 -10 -9 -9 -8 -------- Run | Yrd Mat Min Mat Min Mat Total Allies 5 | . . 3 . 2 . Largest Group 3 | . . 3 3 2 2 Highest-Rated Group 42 | . . 40 40 42 42 Highest-Rated Ally 31 | . . 16 16 31 31 Total Orders . | . . . . . . Ally Attacks 41 | . . . 27 . 14 Total Damage 426 | . . . 255 . 171 Kills 6 | . . . 6 . . Allies Corrupted . | . . . . . . Allies Melted . | . . . . . . Intel | -11 -10 -10 -9 -9 -8 ------- Run | Yrd Mat Min Mat Min Mat Active Infowar (turns) 3018 | 12 441 . 1781 519 265 Sensors 265 | . . . . . 265 Terrain 453 | 12 441 . . . . Structural 2300 | . . . 1781 519 . Robot Analysis Total 5 | . 4 . 1 . . Derelict Logs Recovered 3 | . . 2 . 1 . Drone Launches . | . . . . . . Drone Recoveries . | . . . . . . Exploration | -11 -10 -10 -9 -9 -8 ------------- Run | Yrd Mat Min Mat Min Mat Turns Passed 6898 | 119 1849 658 2202 527 1543 Spaces Moved 2582 | 32 786 233 976 332 223 Core 138 | . . . . . 138 Treads 1632 | . 397 233 976 25 1 Legs 26 | 26 . . . . . Wheels 786 | 6 389 . . 307 84 Hover . | . . . . . . Flight . | . . . . . . Fastest Speed 95 | 100 95 240 160 145 130 Average Speed 211 | 116 183 254 168 146 560 Slowest Speed 850 | 120 320 320 240 160 850 Overloaded Moves . | . . . . . . Propulsion Burnouts . | . . . . . . Robots Hopped . | . . . . . . Potential Cave-ins . | . . . . . . Cave-ins Triggered . | . . . . . . Exploration Rate (%) 55 | 3 95 45 87 73 32 Regions Visited 5 Branch Regions 2 Pre-discovered Areas 2 | . . 2 . . . Known Exits Taken 2 | . . . 1 1 . Unknown Exits Taken 3 | 1 1 1 . . . Scrap Searched 2 | . . . . 2 . Spaces Dug 13 | . 8 . 5 . . Terrain Destroyed 117 | . 34 . 5 22 56 Melee 5 | . . . 5 . . Projectile 8 | . 8 . . . . AOE 104 | . 26 . . 22 56 Terrain Rammed . | . . . . . . Walls Destroyed . | . . . . . . Machines Disabled . | . . . . . . Actions | -11 -10 -10 -9 -9 -8 --------- Run | Yrd Mat Min Mat Min Mat Total 3372 | 66 986 268 1316 360 376 Wait 243 | 4 32 5 143 7 52 Move 2577 | 31 785 232 975 331 223 Hop . | . . . . . . Pick Up 51 | 1 21 5 21 2 1 Fast Attach 27 | 1 9 3 9 1 4 Attach 20 | 2 3 1 9 1 4 Detach 2 | . 1 . 1 . . Swap 40 | 1 17 . 12 5 5 Drop 57 | 2 14 6 29 5 1 Fire 337 | 24 103 16 107 8 79 Melee 18 | . 1 . 10 . 7 Ram . | . . . . . . Kick . | . . . . . . Crush . | . . . . . . Escape Stasis . | . . . . . . Rewire . | . . . . . . Trap . | . . . . . . Miscellaneous . | . . . . . . Route ------- -11/Scrapyard -10/Materials (discovered 5 exits: *Mat x3 / [*Min x2]) -10/Mines -9/Materials (discovered 5 exits: *Mat x3 / *Min x2) -9/Mines (discovered 2 exits: *Mat x2) -8/Materials (discovered 3 exits: Fac / Sto x2) History --------- Turn | Location | Event 25 | -11/Scrapyard | Discovered new exit (range 3) 120 | -11/Scrapyard | Entered Materials 311 | -10/Materials | Build established: Mutant 314 | -10/Materials | Discovered new exit (range 12) 610 | -10/Materials | Discovered new exit (range 16) 670 | -10/Materials | Repaired Assault Rifle 731 | -10/Materials | Discovered new exit (range 10) 817 | -10/Materials | Discovered new exit (range 14) 1120 | -10/Materials | Derelicts attacked the area 1132 | -10/Materials | Discovered new exit (range 16) 1969 | -10/Materials | Entered Mines 2225 | -10/Mines | Learned location of Zion (-6) 2247 | -10/Mines | Learned location of Storage (-8) 2527 | -10/Mines | Assisted by bots powering up and referring to "LRC-V3" 2558 | -10/Mines | Discovered new exit (range 10) 2627 | -10/Mines | Entered Materials 2627 | -9/Materials | Accompanied by 3 allies 2627 | -9/Materials | Evolved 2 slots: Propulsion x1, Utility x1 3176 | -9/Materials | Discovered new exit (range 9) 3181 | -9/Materials | Identified exit to Mines 3487 | -9/Materials | Discovered new exit (range 3) 3497 | -9/Materials | Build established: Scavenger-Mutant 3550 | -9/Materials | Repaired Imp. Ion Engine 4169 | -9/Materials | Discovered new exit (range 16) 4569 | -9/Materials | Build established: Mutant 4829 | -9/Materials | Entered Mines 4835 | -9/Mines | Met a Derelict bent on vengeance 4990 | -9/Mines | Discovered new exit (range 6) 5079 | -9/Mines | Discovered new exit (range 14) 5184 | -9/Mines | Found a Scrap Suit stashed away for nefarious purposes 5189 | -9/Mines | Found Scrap Suit 5288 | -9/Mines | Learned 8 Materials zone layouts 5349 | -9/Mines | Identified exit to Materials 5356 | -9/Mines | Entered Materials 5356 | -8/Materials | Accompanied by 2 allies 5356 | -8/Materials | Evolved 2 slots: Propulsion x1, Utility x1 5357 | -8/Materials | Identified exit to Storage 5357 | -8/Materials | Identified exit to Factory 5361 | -8/Materials | Led the pair of lost Derelicts to an unsafe place 5668 | -8/Materials | Lost 8 parts (1p4n1u2w) 6618 | -8/Materials | Core integrity fell below 50% 6646 | -8/Materials | Core integrity fell below 20% 6650 | -8/Materials | Lost 3 parts (1p1n1w) 6899 | -8/Materials | Destroyed by G-47 Trooper with Particle Gun Last Messages --------------- 06725_ K-01 Serf destroyed. 06731_ K-01 Serf collects debris. 06738_ R-06 Scavenger collects Lgt. Ion Engine. 06738_ K-01 Serf collects debris. 06741_ Acquired 14 matter. 06741_ R-06 Scavenger collects Wheel. 06743_ K-01 Serf collects debris. 06745_ R-06 Scavenger collects Flight Unit. 06748_ K-01 Serf collects debris. 06748_ R-06 Scavenger collects Lgt. Assault Rifle. 06753_ Acquired 101 matter. 06776_ K-01 Serf collects debris. 06779_ K-01 Serf cleans the Terminal. 06784_ K-01 Serf collects debris. 06798_ K-01 Serf cleans the Terminal. 06865_ O-16 Technician: "IFF HANDSHAKE FAILED. SECURING TERMINAL." 06871_ ALERT: Hostiles spotted, dispatching reinforcements to Terminal M004. Map ----- +----------------------------------------------------+ | ?????????????????????????????????????????????????? | | ?????????????????????????????????????????????????? | | ?????????????????????????????????????????????????? | | ?????????????????????????????????????????????????? | | ?????????????????????????????????????????????????? | | ?????????????????????????????????????????????????? | | ?????????????????????????????????????????????????? | | ?????????????????????????????????????????????????? | | ?????????????????????????????????????????????????? | | ?????????????????????????????????????????????????? | | ?????????????????????????????????????????????????? | | ?????????????????????????????????????????????????? | | ????# ???????????????????????????????????? | | #########+####????????????????????########???????? | | ????????????????????#!!!!!!#???????? | | ?????>??????????????#!!!!!!#???????? | | ????????????????????# % #???????? | | ############??????????????????### ######### | | #??#"""#??????????????????????+ | | ####"T"####???????#########???###### %######## | | # #???????# ! #????????# #??????? | | # #???????# """ #????????# %#??????? | | # ##??????# """ #???###### ##+######?? | | # # ??????# """ ##### # #?? | | # # ??????# + + #?? | | # # """ # #####@####### % # #?? | | + # """ + gg #??# #########?? | | # # # #??# ########### | | ###/####### ????# g #??# ### | | ## #?????# ????# "T" #?# | | ## #??#####????# #?# | | #??# ?? """ #?# | | ####??# """?# [ """ ""# | | #?????# """?# """ T"############# | | ###?????# """?# ""????????????? | | #???????# + ##????????????? | | ###?????# # ???" """ #?????????????? | | #?????# # """ """ # ??????????? | | #?????####### """ """ # ??????????? | | #???????????# # ??????????? | | #???????????# # ??????????? | | #?????####### + ??????????? | | < #?????# # ####+#####+####??????????? | | #?????# # # # #??????????? | | ####?????# + + T # #??????????? | | ?????????# #### ##### # "#??????????? | | ?????????# """ #??# #???# # T#??????????? | | ?????????# """ #### ###?# # "#??????????? | | ?????????# """ ## #?# # #??????????? | | ?????????######## #?###############??????????? | +----------------------------------------------------+ Best States ------------- Heat Dissipation 31 Energy Generation 14 Energy Capacity 280 Matter Stores 300 Matter Capacity 300 Sight Range 16 Robot Scan Range 15 Terrain Scan Range 16 Terrain Scan Density 10 Armor Coverage 150 Utility Shielding 33 Evasion (%) 50 Recoil Reduction 3 Offensive Hacking 10 Item Schematics ----------------- None Robot Schematics ------------------ None Fabricated ------------ Nothing Repaired ---------- Assault Rifle | 25% | -10/Materials Imp. Ion Engine | 38% | -9/Materials Alien Tech Used ----------------- None Achievements -------------- None Challenges ------------ None Game ------ Seed AerolevSpreadClaw Manual? 0 Play Time 01:06:13 Cumulative 59.9 hours Start 2025.07.29 @ 10:51:16 End 2025.07.29 @ 17:27:10 Sessions 3 Manual Loads 0 Difficulty Rogue Special Mode None Game No. 28 Rogue 28 Adventurer 0 Explorer 0 Win Type - Total 3 Types 2/0/1/0/0/0/0/0/0/0 Lore% 51 Gallery% 25 Achievement% 39 Wizard Run 0 Options --------- Layout 1 ASCII 0 Keyboard 0 Movement Mouse Keybinds 0 Fullscreen 1 Font 24/Smallcaps Map View 50x35 Zoom Use 0% Tactical HUD 1 Map Filters NONE Filters NONE Steam 1 RUN: 05c0c8c2-3b1c-412f-a373-7dcfb5567f1f